[Event "Early Titled Tuesday Blitz | February 8 2022"]
[White "Alghamdi, Ahmed M"]
[Black "Johnson, Ben"]
[WhiteFideId "21500150"]
[BlackFideId "2010917"]
[WhiteElo "2110"]
[BlackElo "2154"]
[Result "1-0"]
[Round "07"]
[TimeControl "180+1"]
[Date "2022.02.08"]
[WhiteClock "0:00:08"]
[BlackClock "0:00:05"]

1. e4 {[%clk 0:03:00]}  c5 {[%clk 0:03:00]} 2. Nf3 {[%clk 0:03:01]}  Nc6 {[%clk 0:03:00]} 3. Bb5 {[%clk 0:03:01]}  g6 {[%clk 0:03:00]} 4. O-O {[%clk 0:03:00]}  Bg7 {[%clk 0:03:00]} 5. Re1 {[%clk 0:03:00]}  e5 {[%clk 0:02:59]} 6. Bxc6 {[%clk 0:02:59]}  dxc6 {[%clk 0:02:58]} 7. h3 {[%clk 0:02:57]}  Qe7 {[%clk 0:02:53]} 8. d3 {[%clk 0:02:54]}  Nf6 {[%clk 0:02:51]} 9. a3 {[%clk 0:02:52]}  O-O {[%clk 0:02:46]} 10. b4 {[%clk 0:02:52]}  cxb4 {[%clk 0:02:42]} 11. axb4 {[%clk 0:02:53]}  Rd8 {[%clk 0:02:29]} 12. Bb2 {[%clk 0:02:41]}  Ne8 {[%clk 0:02:28]} 13. Nbd2 {[%clk 0:02:34]}  Nc7 {[%clk 0:02:22]} 14. Nc4 {[%clk 0:02:31]}  f6 {[%clk 0:02:22]} 15. Qd2 {[%clk 0:02:13]}  Be6 {[%clk 0:02:19]} 16. Na5 {[%clk 0:02:09]}  Nb5 {[%clk 0:02:13]} 17. c4 {[%clk 0:02:01]}  Nd6 {[%clk 0:02:13]} 18. Qc2 {[%clk 0:01:55]}  Rac8 {[%clk 0:01:59]} 19. Nb3 {[%clk 0:01:51]}  b6 {[%clk 0:01:43]} 20. c5 {[%clk 0:01:23]}  Nb5 {[%clk 0:01:36]} 21. Ra6 {[%clk 0:01:10]}  Kh8 {[%clk 0:01:28]} 22. cxb6 {[%clk 0:01:01]}  axb6 {[%clk 0:01:05]} 23. Rxb6 {[%clk 0:00:46]}  Qxb4 {[%clk 0:00:54]} 24. Nc5 {[%clk 0:00:33]}  Bf7 {[%clk 0:00:48]} 25. Rb1 {[%clk 0:00:26]}  Bf8 {[%clk 0:00:46]} 26. Nb7 {[%clk 0:00:19]}  Rd7 {[%clk 0:00:23]} 27. Bxe5 {[%clk 0:00:19]}  Qe7 {[%clk 0:00:17]} 28. Ba1 {[%clk 0:00:15]}  Rxb7 {[%clk 0:00:14]} 29. Rxb7 {[%clk 0:00:15]}  Qxb7 {[%clk 0:00:14]} 30. Bxf6+ {[%clk 0:00:13]}  Bg7 {[%clk 0:00:12]} 31. Bxg7+ {[%clk 0:00:13]}  Kxg7 {[%clk 0:00:13]} 32. d4 {[%clk 0:00:12]}  Kg8 {[%clk 0:00:12]} 33. Qc5 {[%clk 0:00:09]}  Qd7 {[%clk 0:00:09]} 34. d5 {[%clk 0:00:10]}  Na7 {[%clk 0:00:08]} 35. d6 {[%clk 0:00:09]}  Nb5 {[%clk 0:00:06]} 36. Ne5 {[%clk 0:00:08]}  Qe6 {[%clk 0:00:05]} 37. Nxc6 {[%clk 0:00:06]}  Nd4 {[%clk 0:00:02]} 38. Qxd4 {[%clk 0:00:04]}  Rxc6 {[%clk 0:00:02]} 39. Rd1 {[%clk 0:00:04]}  Qd7 {[%clk 0:00:01]} 40. Qf6 {[%clk 0:00:04]}  Rc8 {[%clk 0:00:01]} 41. Qe7 {[%clk 0:00:04]}  Re8 {[%clk 0:00:02]} 42. Qf6 {[%clk 0:00:04]}  Re6 {[%clk 0:00:02]} 43. Qd4 {[%clk 0:00:03]}  h6 {[%clk 0:00:01]} 44. e5 {[%clk 0:00:04]}  Kh7 {[%clk 0:00:02]} 45. Qf4 {[%clk 0:00:04]}  Re8 {[%clk 0:00:02]} 46. Qf6 {[%clk 0:00:04]}  Be6 {[%clk 0:00:02]} 47. Rc1 {[%clk 0:00:02]}  Qg7 {[%clk 0:00:03]} 48. Rc7 {[%clk 0:00:02]}  Qxc7 {[%clk 0:00:03]} 49. dxc7 {[%clk 0:00:03]}  Bg8 {[%clk 0:00:03]} 50. Qe7+ {[%clk 0:00:01]}  Bf7 {[%clk 0:00:03]} 51. c8=Q {[%clk 0:00:02]}  Rxe7 {[%clk 0:00:03]} 52. Qd8 {[%clk 0:00:01]}  Ra7 {[%clk 0:00:03]} 53. Qf6 {[%clk 0:00:02]}  Kg8 {[%clk 0:00:03]} 54. Kh2 {[%clk 0:00:02]}  Ra6 {[%clk 0:00:03]} 55. Qe7 {[%clk 0:00:02]}  Re6 {[%clk 0:00:04]} 56. Qd8+ {[%clk 0:00:02]}  Re8 {[%clk 0:00:04]} 57. Qd4 {[%clk 0:00:03]}  Kh7 {[%clk 0:00:04]} 58. f4 {[%clk 0:00:04]}  Re6 {[%clk 0:00:04]} 59. h4 {[%clk 0:00:05]}  Kg8 {[%clk 0:00:04]} 60. h5 {[%clk 0:00:05]}  Re8 {[%clk 0:00:05]} 61. hxg6 {[%clk 0:00:05]}  Bxg6 {[%clk 0:00:06]} 62. Qd5+ {[%clk 0:00:06]}  Bf7 {[%clk 0:00:07]} 63. Qf3 {[%clk 0:00:06]}  Re6 {[%clk 0:00:07]} 64. Qg4+ {[%clk 0:00:07]}  Rg6 {[%clk 0:00:06]} 65. Qf5 {[%clk 0:00:07]}  Kg7 {[%clk 0:00:05]} 66. Qe4 {[%clk 0:00:07]}  Be6 {[%clk 0:00:06]} 67. f5 {[%clk 0:00:07]}  Bxf5 {[%clk 0:00:05]} 68. Qxf5 {[%clk 0:00:07]}  Rg5 {[%clk 0:00:06]} 69. Qf6+ {[%clk 0:00:08]}  Kh7 {[%clk 0:00:06]} 70. e6 {[%clk 0:00:08]}  Rh5+ {[%clk 0:00:05]} 71. Kg1 {[%clk 0:00:07]}  Ra5 {[%clk 0:00:05]} 72. Qf7+ {[%clk 0:00:08]} 1-0


[Site "https://www.chess.com"]

[Event "Early Titled Tuesday Blitz | February 8 2022"]
[White "Aradhya, Garg"]
[Black "Samunenkov, Ihor"]
[WhiteFideId "25006746"]
[BlackFideId "14187086"]
[WhiteElo "2169"]
[BlackElo "2406"]
[Result "0-1"]
[Round "07"]
[TimeControl "180+1"]
[Date "2022.02.08"]
[WhiteClock "0:01:12"]
[BlackClock "0:00:52"]

1. d4 {[%clk 0:03:00]}  d5 {[%clk 0:02:58]} 2. c4 {[%clk 0:03:00]}  e6 {[%clk 0:02:58]} 3. Nc3 {[%clk 0:03:00]}  a6 {[%clk 0:02:59]} 4. cxd5 {[%clk 0:02:58]}  exd5 {[%clk 0:03:00]} 5. Nf3 {[%clk 0:02:56]}  Nf6 {[%clk 0:02:59]} 6. Qb3 {[%clk 0:02:56]}  h6 {[%clk 0:02:37]} 7. e4 {[%clk 0:02:53]}  Nxe4 {[%clk 0:02:17]} 8. Nxe4 {[%clk 0:02:52]}  dxe4 {[%clk 0:02:18]} 9. Ne5 {[%clk 0:02:53]}  Be6 {[%clk 0:02:18]} 10. Qxb7 {[%clk 0:02:47]}  Bd5 {[%clk 0:02:16]} 11. Qxa8 {[%clk 0:02:28]}  Bxa8 {[%clk 0:02:15]} 12. Bc4 {[%clk 0:02:29]}  Bd5 {[%clk 0:02:13]} 13. O-O {[%clk 0:02:26]}  Be7 {[%clk 0:02:03]} 14. Be3 {[%clk 0:02:21]}  O-O {[%clk 0:02:01]} 15. Rac1 {[%clk 0:02:20]}  Bxc4 {[%clk 0:01:58]} 16. Rxc4 {[%clk 0:02:19]}  Bd6 {[%clk 0:01:59]} 17. Rfc1 {[%clk 0:02:18]}  Nd7 {[%clk 0:01:51]} 18. Nc6 {[%clk 0:02:15]}  Qh4 {[%clk 0:01:50]} 19. g3 {[%clk 0:02:13]}  Qh5 {[%clk 0:01:49]} 20. d5 {[%clk 0:02:06]}  Nf6 {[%clk 0:01:45]} 21. h4 {[%clk 0:01:46]}  Qxd5 {[%clk 0:01:31]} 22. a4 {[%clk 0:01:39]}  Ng4 {[%clk 0:01:25]} 23. Rd4 {[%clk 0:01:38]}  Qe6 {[%clk 0:01:20]} 24. Bd2 {[%clk 0:01:35]}  e3 {[%clk 0:01:20]} 25. Bxe3 {[%clk 0:01:36]}  Nxe3 {[%clk 0:01:19]} 26. Re1 {[%clk 0:01:36]}  Bc5 {[%clk 0:01:11]} 27. Rxe3 {[%clk 0:01:36]}  Qxc6 {[%clk 0:01:11]} 28. Rc3 {[%clk 0:01:36]}  Qb6 {[%clk 0:01:07]} 29. Rf4 {[%clk 0:01:36]}  Bd6 {[%clk 0:01:04]} 30. Rff3 {[%clk 0:01:33]}  Qxb2 {[%clk 0:01:04]} 31. Rc4 {[%clk 0:01:32]}  Re8 {[%clk 0:01:01]} 32. Kg2 {[%clk 0:01:32]}  Re2 {[%clk 0:01:01]} 33. h5 {[%clk 0:01:26]}  Be5 {[%clk 0:00:55]} 34. Rc6 {[%clk 0:01:22]}  Bd4 {[%clk 0:00:53]} 35. Rxc7 {[%clk 0:01:21]}  Rxf2+ {[%clk 0:00:53]} 36. Rxf2 {[%clk 0:01:17]}  Qxf2+ {[%clk 0:00:54]} 37. Kh3 {[%clk 0:01:17]}  Be5 {[%clk 0:00:55]} 38. Rc8+ {[%clk 0:01:12]}  Kh7 {[%clk 0:00:54]} 39. Rc3 {[%clk 0:01:13]}  Bxc3 {[%clk 0:00:54]} 40. Kg4 {[%clk 0:01:13]}  Be5 {[%clk 0:00:53]} 41. a5 {[%clk 0:01:12]}  f5+ {[%clk 0:00:51]} 42. Kh3 {[%clk 0:01:12]}  Qxg3# {[%clk 0:00:52]} 0-1


[Site "https://www.chess.com"]

[Event "Early Titled Tuesday Blitz | February 8 2022"]
[White "Ashwin, Jayaram"]
[Black "Politov, Pavel Y."]
[WhiteFideId "5018137"]
[BlackFideId "24110515"]
[WhiteElo "2461"]
[BlackElo "2090"]
[Result "0-1"]
[Round "07"]
[TimeControl "180+1"]
[Date "2022.02.08"]
[WhiteClock "0:00:02"]
[BlackClock "0:00:05"]

1. e4 {[%clk 0:03:00]}  c5 {[%clk 0:02:58]} 2. Nf3 {[%clk 0:02:58]}  d6 {[%clk 0:02:58]} 3. c3 {[%clk 0:02:57]}  Nc6 {[%clk 0:02:37]} 4. d4 {[%clk 0:02:55]}  cxd4 {[%clk 0:02:35]} 5. cxd4 {[%clk 0:02:53]}  Nf6 {[%clk 0:02:30]} 6. Nc3 {[%clk 0:02:51]}  e6 {[%clk 0:02:21]} 7. Bg5 {[%clk 0:02:41]}  Be7 {[%clk 0:02:18]} 8. Bd3 {[%clk 0:02:39]}  O-O {[%clk 0:02:16]} 9. O-O {[%clk 0:02:37]}  b6 {[%clk 0:02:09]} 10. e5 {[%clk 0:02:33]}  dxe5 {[%clk 0:02:07]} 11. dxe5 {[%clk 0:02:33]}  Nd7 {[%clk 0:02:04]} 12. Bxe7 {[%clk 0:02:29]}  Qxe7 {[%clk 0:02:01]} 13. Qe2 {[%clk 0:02:28]}  Bb7 {[%clk 0:02:00]} 14. Qe4 {[%clk 0:02:21]}  g6 {[%clk 0:01:51]} 15. h4 {[%clk 0:02:17]}  Ncxe5 {[%clk 0:01:46]} 16. Qxb7 {[%clk 0:02:12]}  Nxd3 {[%clk 0:01:44]} 17. Rad1 {[%clk 0:02:11]}  Rfb8 {[%clk 0:01:39]} 18. Qe4 {[%clk 0:01:55]}  N7c5 {[%clk 0:01:34]} 19. Qe2 {[%clk 0:01:53]}  Rd8 {[%clk 0:01:28]} 20. g3 {[%clk 0:01:48]}  Rac8 {[%clk 0:01:21]} 21. a3 {[%clk 0:01:46]}  Qf6 {[%clk 0:01:18]} 22. Rd2 {[%clk 0:01:43]}  Nxb2 {[%clk 0:01:14]} 23. Nb5 {[%clk 0:01:25]}  Rxd2 {[%clk 0:01:11]} 24. Nxd2 {[%clk 0:01:22]}  Rd8 {[%clk 0:01:09]} 25. Nxa7 {[%clk 0:01:15]}  Rd3 {[%clk 0:01:00]} 26. Nc6 {[%clk 0:01:05]}  Rxa3 {[%clk 0:00:57]} 27. Rb1 {[%clk 0:00:59]}  Nbd3 {[%clk 0:00:52]} 28. Rxb6 {[%clk 0:00:43]}  Ra1+ {[%clk 0:00:49]} 29. Kg2 {[%clk 0:00:40]}  Re1 {[%clk 0:00:45]} 30. Qf3 {[%clk 0:00:37]}  Qxf3+ {[%clk 0:00:42]} 31. Nxf3 {[%clk 0:00:37]}  Re2 {[%clk 0:00:38]} 32. Ncd4 {[%clk 0:00:24]}  Rxf2+ {[%clk 0:00:35]} 33. Kg1 {[%clk 0:00:24]}  Ra2 {[%clk 0:00:30]} 34. Ng5 {[%clk 0:00:18]}  Kg7 {[%clk 0:00:28]} 35. Rc6 {[%clk 0:00:16]}  Ra1+ {[%clk 0:00:24]} 36. Kg2 {[%clk 0:00:16]}  Ra4 {[%clk 0:00:20]} 37. Ndf3 {[%clk 0:00:14]}  Ne4 {[%clk 0:00:15]} 38. Rc7 {[%clk 0:00:12]}  Nd6 {[%clk 0:00:14]} 39. Rd7 {[%clk 0:00:09]}  Ra6 {[%clk 0:00:12]} 40. Nd4 {[%clk 0:00:02]}  h6 {[%clk 0:00:07]} 41. Ngf3 {[%clk 0:00:02]}  e5 {[%clk 0:00:05]} 0-1


[Site "https://www.chess.com"]

[Event "Early Titled Tuesday Blitz | February 8 2022"]
[White "Barp, Alberto"]
[Black "Hansen, Eric"]
[WhiteFideId "872555"]
[BlackFideId "2606771"]
[WhiteElo "2229"]
[BlackElo "2568"]
[Result "0-1"]
[Round "07"]
[TimeControl "180+1"]
[Date "2022.02.08"]
[WhiteClock "0:00:10"]
[BlackClock "0:00:15"]

1. d4 {[%clk 0:03:00]}  Nf6 {[%clk 0:02:58]} 2. c4 {[%clk 0:03:00]}  e6 {[%clk 0:02:59]} 3. Nf3 {[%clk 0:03:00]}  b6 {[%clk 0:02:54]} 4. g3 {[%clk 0:03:00]}  Ba6 {[%clk 0:02:54]} 5. b3 {[%clk 0:02:59]}  Bb4+ {[%clk 0:02:54]} 6. Bd2 {[%clk 0:02:58]}  Be7 {[%clk 0:02:55]} 7. Bg2 {[%clk 0:02:52]}  c6 {[%clk 0:02:55]} 8. O-O {[%clk 0:02:52]}  O-O {[%clk 0:02:55]} 9. Qc2 {[%clk 0:02:50]}  d5 {[%clk 0:02:56]} 10. Rd1 {[%clk 0:02:50]}  Nbd7 {[%clk 0:02:55]} 11. Bc1 {[%clk 0:02:48]}  Rc8 {[%clk 0:02:55]} 12. Bb2 {[%clk 0:02:48]}  Qc7 {[%clk 0:02:55]} 13. Nbd2 {[%clk 0:02:47]}  Rfd8 {[%clk 0:02:54]} 14. Rac1 {[%clk 0:02:42]}  Qb8 {[%clk 0:02:54]} 15. e4 {[%clk 0:02:38]}  b5 {[%clk 0:02:30]} 16. e5 {[%clk 0:02:33]}  Ne8 {[%clk 0:02:30]} 17. c5 {[%clk 0:02:31]}  b4 {[%clk 0:02:30]} 18. h4 {[%clk 0:02:26]}  Nc7 {[%clk 0:02:22]} 19. Ng5 {[%clk 0:02:23]}  Bxg5 {[%clk 0:02:20]} 20. hxg5 {[%clk 0:02:24]}  Be2 {[%clk 0:02:20]} 21. Re1 {[%clk 0:02:18]}  Bh5 {[%clk 0:02:20]} 22. Nf1 {[%clk 0:02:12]}  a5 {[%clk 0:02:15]} 23. Ne3 {[%clk 0:02:11]}  Nb5 {[%clk 0:01:58]} 24. f4 {[%clk 0:02:04]}  Bg6 {[%clk 0:01:55]} 25. Qd2 {[%clk 0:01:53]}  Nc3 {[%clk 0:01:05]} 26. Bxc3 {[%clk 0:01:50]}  bxc3 {[%clk 0:01:06]} 27. Qxc3 {[%clk 0:01:50]}  Qb4 {[%clk 0:01:07]} 28. g4 {[%clk 0:01:37]}  f6 {[%clk 0:00:56]} 29. gxf6 {[%clk 0:01:28]}  gxf6 {[%clk 0:00:56]} 30. f5 {[%clk 0:01:27]}  Bf7 {[%clk 0:00:56]} 31. exf6 {[%clk 0:00:54]}  Nxf6 {[%clk 0:00:51]} 32. g5 {[%clk 0:00:49]}  Ne4 {[%clk 0:00:48]} 33. Qxb4 {[%clk 0:00:38]}  axb4 {[%clk 0:00:49]} 34. Bxe4 {[%clk 0:00:27]}  dxe4 {[%clk 0:00:49]} 35. Red1 {[%clk 0:00:24]}  Bh5 {[%clk 0:00:31]} 36. Rd2 {[%clk 0:00:23]}  Kf7 {[%clk 0:00:22]} 37. Nc4 {[%clk 0:00:20]}  exf5 {[%clk 0:00:20]} 38. Nd6+ {[%clk 0:00:20]}  Ke6 {[%clk 0:00:16]} 39. Nxc8 {[%clk 0:00:19]}  Rxc8 {[%clk 0:00:17]} 40. Kf2 {[%clk 0:00:19]}  f4 {[%clk 0:00:17]} 41. Kg2 {[%clk 0:00:14]}  Kd5 {[%clk 0:00:15]} 42. Rf2 {[%clk 0:00:12]}  Rf8 {[%clk 0:00:14]} 43. Rcf1 {[%clk 0:00:11]}  f3+ {[%clk 0:00:13]} 44. Kg3 {[%clk 0:00:11]}  e3 {[%clk 0:00:11]} 45. Rxf3 {[%clk 0:00:10]}  Rxf3+ {[%clk 0:00:09]} 46. Rxf3 {[%clk 0:00:11]}  Bxf3 {[%clk 0:00:10]} 47. Kxf3 {[%clk 0:00:12]}  Kxd4 {[%clk 0:00:10]} 48. Ke2 {[%clk 0:00:10]}  Ke4 {[%clk 0:00:11]} 49. Ke1 {[%clk 0:00:11]}  Kd3 {[%clk 0:00:11]} 50. Kd1 {[%clk 0:00:10]}  e2+ {[%clk 0:00:11]} 51. Ke1 {[%clk 0:00:10]}  Ke3 {[%clk 0:00:12]} 52. g6 {[%clk 0:00:10]}  hxg6 {[%clk 0:00:12]} 53. a3 {[%clk 0:00:10]}  bxa3 {[%clk 0:00:13]} 54. b4 {[%clk 0:00:10]}  a2 {[%clk 0:00:14]} 55. b5 {[%clk 0:00:10]}  a1=Q# {[%clk 0:00:15]} 0-1


[Site "https://www.chess.com"]

[Event "Early Titled Tuesday Blitz | February 8 2022"]
[White "Barrientos, Sergio E"]
[Black "Silich, Yahor"]
[WhiteFideId "4401824"]
[BlackFideId "13513656"]
[WhiteElo "2441"]
[BlackElo "2101"]
[Result "1-0"]
[Round "07"]
[TimeControl "180+1"]
[Date "2022.02.08"]
[WhiteClock "0:02:27"]
[BlackClock "0:00:01"]

1. d4 {[%clk 0:02:54]}  Nf6 {[%clk 0:02:59]} 2. Nf3 {[%clk 0:02:54]}  g6 {[%clk 0:03:00]} 3. g3 {[%clk 0:02:52]}  Bg7 {[%clk 0:03:00]} 4. Bg2 {[%clk 0:02:53]}  O-O {[%clk 0:03:01]} 5. O-O {[%clk 0:02:54]}  d6 {[%clk 0:03:02]} 6. a4 {[%clk 0:02:55]}  a5 {[%clk 0:03:01]} 7. Nc3 {[%clk 0:02:55]}  Nbd7 {[%clk 0:03:01]} 8. e4 {[%clk 0:02:55]}  e5 {[%clk 0:03:02]} 9. h3 {[%clk 0:02:56]}  c6 {[%clk 0:03:00]} 10. Re1 {[%clk 0:02:56]}  Qc7 {[%clk 0:03:00]} 11. b3 {[%clk 0:02:56]}  Re8 {[%clk 0:03:00]} 12. Ba3 {[%clk 0:02:57]}  Bf8 {[%clk 0:02:58]} 13. Qd3 {[%clk 0:02:55]}  b6 {[%clk 0:02:51]} 14. Rad1 {[%clk 0:02:54]}  Bb7 {[%clk 0:02:51]} 15. dxe5 {[%clk 0:02:54]}  dxe5 {[%clk 0:02:50]} 16. Bxf8 {[%clk 0:02:54]}  Nxf8 {[%clk 0:02:50]} 17. Qd6 {[%clk 0:02:54]}  Qxd6 {[%clk 0:02:47]} 18. Rxd6 {[%clk 0:02:55]}  Kg7 {[%clk 0:02:47]} 19. Red1 {[%clk 0:02:54]}  Re7 {[%clk 0:02:38]} 20. Nd2 {[%clk 0:02:54]}  N6d7 {[%clk 0:02:05]} 21. Nc4 {[%clk 0:02:53]}  f6 {[%clk 0:02:05]} 22. h4 {[%clk 0:02:53]}  Rc8 {[%clk 0:01:42]} 23. Bh3 {[%clk 0:02:52]}  Rc7 {[%clk 0:01:43]} 24. f4 {[%clk 0:02:51]}  exf4 {[%clk 0:01:42]} 25. gxf4 {[%clk 0:02:52]}  Nc5 {[%clk 0:01:33]} 26. Nxb6 {[%clk 0:02:50]}  Nxe4 {[%clk 0:01:31]} 27. Nxe4 {[%clk 0:02:49]}  Rxe4 {[%clk 0:01:32]} 28. R1d4 {[%clk 0:02:49]}  Rce7 {[%clk 0:01:29]} 29. Rxe4 {[%clk 0:02:47]}  Rxe4 {[%clk 0:01:29]} 30. Nd7 {[%clk 0:02:47]}  Bc8 {[%clk 0:01:10]} 31. Nxf6 {[%clk 0:02:39]}  Rxf4 {[%clk 0:01:11]} 32. Ne8+ {[%clk 0:02:33]}  Kf7 {[%clk 0:01:11]} 33. Bxc8 {[%clk 0:02:33]}  Kxe8 {[%clk 0:01:11]} 34. Rxc6 {[%clk 0:02:33]}  Rxh4 {[%clk 0:01:09]} 35. Rc5 {[%clk 0:02:33]}  Kd8 {[%clk 0:00:51]} 36. Rxa5 {[%clk 0:02:33]}  Rd4 {[%clk 0:00:44]} 37. Ra8 {[%clk 0:02:32]}  g5 {[%clk 0:00:35]} 38. Bf5+ {[%clk 0:02:30]}  Ke7 {[%clk 0:00:35]} 39. a5 {[%clk 0:02:29]}  Rf4 {[%clk 0:00:31]} 40. Bd3 {[%clk 0:02:28]}  Nd7 {[%clk 0:00:17]} 41. a6 {[%clk 0:02:28]}  Rg4+ {[%clk 0:00:02]} 42. Kf2 {[%clk 0:02:27]}  Nb6 {[%clk 0:00:01]} 43. Rh8 {[%clk 0:02:26]}  Kd6 {[%clk 0:00:01]} 44. a7 {[%clk 0:02:26]}  Rf4+ {[%clk 0:00:02]} 45. Ke1 {[%clk 0:02:25]}  h5 {[%clk 0:00:02]} 46. Rxh5 {[%clk 0:02:25]}  g4 {[%clk 0:00:01]} 47. Rh6+ {[%clk 0:02:26]}  Kc5 {[%clk 0:00:01]} 48. Rxb6 {[%clk 0:02:27]} 1-0


[Site "https://www.chess.com"]

[Event "Early Titled Tuesday Blitz | February 8 2022"]
[White "Bashirli, Saadat"]
[Black "Kornyukov, Alexey"]
[WhiteFideId "13429990"]
[BlackFideId "4150457"]
[WhiteElo "1173"]
[BlackElo "2303"]
[Result "0-1"]
[Round "07"]
[TimeControl "180+1"]
[Date "2022.02.08"]
[WhiteClock "0:00:24"]
[BlackClock "0:00:26"]

1. d4 {[%clk 0:03:00]}  d5 {[%clk 0:02:58]} 2. Bg5 {[%clk 0:03:00]}  Nf6 {[%clk 0:02:58]} 3. Nd2 {[%clk 0:02:59]}  c5 {[%clk 0:02:58]} 4. e3 {[%clk 0:02:58]}  Nc6 {[%clk 0:02:57]} 5. Ngf3 {[%clk 0:02:56]}  cxd4 {[%clk 0:02:58]} 6. exd4 {[%clk 0:02:55]}  Bg4 {[%clk 0:02:55]} 7. c3 {[%clk 0:02:53]}  e6 {[%clk 0:02:50]} 8. Bb5 {[%clk 0:02:51]}  Be7 {[%clk 0:02:48]} 9. O-O {[%clk 0:02:49]}  h6 {[%clk 0:02:47]} 10. Bf4 {[%clk 0:02:47]}  g5 {[%clk 0:02:43]} 11. Bg3 {[%clk 0:02:43]}  Ne4 {[%clk 0:02:34]} 12. Be2 {[%clk 0:02:38]}  h5 {[%clk 0:02:31]} 13. Nxe4 {[%clk 0:02:35]}  dxe4 {[%clk 0:02:28]} 14. Ne5 {[%clk 0:02:35]}  Nxe5 {[%clk 0:02:23]} 15. Bxe5 {[%clk 0:02:31]}  Bxe2 {[%clk 0:02:20]} 16. Qxe2 {[%clk 0:02:27]}  f6 {[%clk 0:02:18]} 17. Qxe4 {[%clk 0:02:15]}  fxe5 {[%clk 0:02:14]} 18. Qg6+ {[%clk 0:02:09]}  Kd7 {[%clk 0:02:13]} 19. dxe5 {[%clk 0:02:07]}  Kc7 {[%clk 0:02:09]} 20. Qxe6 {[%clk 0:02:06]}  Qd7 {[%clk 0:02:04]} 21. Qc4+ {[%clk 0:02:05]}  Qc6 {[%clk 0:02:03]} 22. Qf7 {[%clk 0:01:58]}  Rae8 {[%clk 0:01:52]} 23. Rad1 {[%clk 0:01:55]}  Kb8 {[%clk 0:01:45]} 24. e6 {[%clk 0:01:51]}  Bc5 {[%clk 0:01:35]} 25. Rd7 {[%clk 0:01:46]}  h4 {[%clk 0:01:31]} 26. b4 {[%clk 0:01:42]}  Bb6 {[%clk 0:01:28]} 27. b5 {[%clk 0:01:25]}  Qxe6 {[%clk 0:01:21]} 28. Rxb7+ {[%clk 0:01:23]}  Ka8 {[%clk 0:01:20]} 29. Qf3 {[%clk 0:01:21]}  Qe4 {[%clk 0:01:18]} 30. Rf7 {[%clk 0:00:55]}  Qxf3 {[%clk 0:01:15]} 31. Rxf3 {[%clk 0:00:54]}  Re2 {[%clk 0:01:10]} 32. Rf5 {[%clk 0:00:49]}  g4 {[%clk 0:01:08]} 33. c4 {[%clk 0:00:36]}  Rxa2 {[%clk 0:01:04]} 34. c5 {[%clk 0:00:34]}  Bc7 {[%clk 0:01:02]} 35. Rd1 {[%clk 0:00:33]}  g3 {[%clk 0:00:58]} 36. hxg3 {[%clk 0:00:32]}  hxg3 {[%clk 0:00:52]} 37. f3 {[%clk 0:00:31]}  Ra4 {[%clk 0:00:48]} 38. Rf7 {[%clk 0:00:27]}  Rah4 {[%clk 0:00:40]} 39. Kf1 {[%clk 0:00:18]}  Rh1+ {[%clk 0:00:39]} 40. Ke2 {[%clk 0:00:17]}  Re8+ {[%clk 0:00:36]} 41. Kd2 {[%clk 0:00:17]}  Rd8+ {[%clk 0:00:36]} 42. Kc2 {[%clk 0:00:18]}  Rhxd1 {[%clk 0:00:35]} 43. Rxc7 {[%clk 0:00:18]}  R1d2+ {[%clk 0:00:35]} 44. Kc3 {[%clk 0:00:18]}  Rxg2 {[%clk 0:00:35]} 45. Rg7 {[%clk 0:00:16]}  Rg1 {[%clk 0:00:34]} 46. c6 {[%clk 0:00:16]}  g2 {[%clk 0:00:32]} 47. Kc2 {[%clk 0:00:17]}  Ra1 {[%clk 0:00:30]} 48. c7 {[%clk 0:00:14]}  Rc8 {[%clk 0:00:29]} 49. Rxg2 {[%clk 0:00:09]}  Ra2+ {[%clk 0:00:28]} 50. Kb3 {[%clk 0:00:10]}  Rxg2 {[%clk 0:00:29]} 51. Kb4 {[%clk 0:00:11]}  Rxc7 {[%clk 0:00:28]} 52. b6 {[%clk 0:00:10]}  axb6 {[%clk 0:00:28]} 53. f4 {[%clk 0:00:11]}  Rc4+ {[%clk 0:00:28]} 54. Kxc4 {[%clk 0:00:11]}  Rf2 {[%clk 0:00:28]} 55. Kb5 {[%clk 0:00:11]}  Rxf4 {[%clk 0:00:28]} 56. Kxb6 {[%clk 0:00:12]}  Rf6+ {[%clk 0:00:27]} 57. Kc5 {[%clk 0:00:13]}  Kb7 {[%clk 0:00:27]} 58. Kd5 {[%clk 0:00:14]}  Rh6 {[%clk 0:00:27]} 59. Ke5 {[%clk 0:00:15]}  Kc7 {[%clk 0:00:27]} 60. Kd5 {[%clk 0:00:15]}  Rg6 {[%clk 0:00:26]} 61. Ke4 {[%clk 0:00:16]}  Rg5 {[%clk 0:00:25]} 62. Kd4 {[%clk 0:00:17]}  Ra5 {[%clk 0:00:25]} 63. Ke4 {[%clk 0:00:18]}  Kd6 {[%clk 0:00:25]} 64. Kd4 {[%clk 0:00:19]}  Ra4+ {[%clk 0:00:25]} 65. Ke3 {[%clk 0:00:19]}  Ke5 {[%clk 0:00:26]} 66. Kd3 {[%clk 0:00:20]}  Kd5 {[%clk 0:00:26]} 67. Ke3 {[%clk 0:00:21]}  Rb4 {[%clk 0:00:26]} 68. Kd2 {[%clk 0:00:21]}  Kd4 {[%clk 0:00:26]} 69. Ke2 {[%clk 0:00:22]}  Rb3 {[%clk 0:00:26]} 70. Kd2 {[%clk 0:00:23]}  Rb2+ {[%clk 0:00:26]} 71. Kc1 {[%clk 0:00:22]}  Kc3 {[%clk 0:00:26]} 72. Kd1 {[%clk 0:00:23]}  Ra2 {[%clk 0:00:26]} 73. Ke1 {[%clk 0:00:23]}  Kd3 {[%clk 0:00:26]} 74. Kf1 {[%clk 0:00:23]}  Ke3 {[%clk 0:00:26]} 75. Kg1 {[%clk 0:00:24]}  Kf3 {[%clk 0:00:26]} 76. Kh1 {[%clk 0:00:24]}  Kg3 {[%clk 0:00:26]} 77. Kg1 {[%clk 0:00:24]}  Ra1# {[%clk 0:00:26]} 0-1


[Site "https://www.chess.com"]

[Event "Early Titled Tuesday Blitz | February 8 2022"]
[White "Beerdsen, Thomas"]
[Black "Jobava, Baadur"]
[WhiteFideId "1030108"]
[BlackFideId "13601520"]
[WhiteElo "2585"]
[BlackElo "2617"]
[Result "0-1"]
[Round "07"]
[TimeControl "180+1"]
[Date "2022.02.08"]
[WhiteClock "0:00:03"]
[BlackClock "0:02:02"]

1. e4 {[%clk 0:03:00]}  c6 {[%clk 0:02:57]} 2. d4 {[%clk 0:03:00]}  d5 {[%clk 0:02:58]} 3. f3 {[%clk 0:03:01]}  Nf6 {[%clk 0:02:56]} 4. e5 {[%clk 0:02:59]}  Nfd7 {[%clk 0:02:56]} 5. f4 {[%clk 0:02:59]}  c5 {[%clk 0:02:57]} 6. Nf3 {[%clk 0:03:00]}  Nc6 {[%clk 0:02:57]} 7. c3 {[%clk 0:02:58]}  cxd4 {[%clk 0:02:57]} 8. cxd4 {[%clk 0:02:58]}  Nb6 {[%clk 0:02:58]} 9. h3 {[%clk 0:02:51]}  Bf5 {[%clk 0:02:57]} 10. Nc3 {[%clk 0:02:48]}  e6 {[%clk 0:02:55]} 11. Be3 {[%clk 0:02:42]}  Rc8 {[%clk 0:02:54]} 12. Rc1 {[%clk 0:02:40]}  h5 {[%clk 0:02:52]} 13. Be2 {[%clk 0:02:36]}  Be7 {[%clk 0:02:52]} 14. O-O {[%clk 0:02:35]}  h4 {[%clk 0:02:50]} 15. Bf2 {[%clk 0:02:33]}  Kf8 {[%clk 0:02:46]} 16. Qe1 {[%clk 0:02:28]}  Nc4 {[%clk 0:02:42]} 17. b3 {[%clk 0:02:27]}  Na3 {[%clk 0:02:41]} 18. Ng5 {[%clk 0:02:22]}  Bxg5 {[%clk 0:02:37]} 19. fxg5 {[%clk 0:02:23]}  Qxg5 {[%clk 0:02:38]} 20. Kh2 {[%clk 0:02:19]}  Qf4+ {[%clk 0:02:36]} 21. Kh1 {[%clk 0:02:17]}  Nxd4 {[%clk 0:02:35]} 22. Nxd5 {[%clk 0:02:08]}  Qxc1 {[%clk 0:02:24]} 23. Qxc1 {[%clk 0:01:41]}  Rxc1 {[%clk 0:02:25]} 24. Rxc1 {[%clk 0:01:42]}  exd5 {[%clk 0:02:25]} 25. Bxd4 {[%clk 0:01:42]}  Nc2 {[%clk 0:02:22]} 26. Bc5+ {[%clk 0:01:35]}  Ke8 {[%clk 0:02:18]} 27. Bd1 {[%clk 0:01:28]}  Ne1 {[%clk 0:02:14]} 28. Bxa7 {[%clk 0:01:21]}  Kd7 {[%clk 0:02:12]} 29. Be2 {[%clk 0:00:48]}  Nc2 {[%clk 0:02:12]} 30. Bc5 {[%clk 0:00:44]}  Rc8 {[%clk 0:02:10]} 31. Bd6 {[%clk 0:00:40]}  Ke6 {[%clk 0:02:02]} 32. Kg1 {[%clk 0:00:22]}  f6 {[%clk 0:02:01]} 33. exf6 {[%clk 0:00:04]}  Kxd6 {[%clk 0:02:01]} 34. fxg7 {[%clk 0:00:05]}  Rg8 {[%clk 0:02:02]} 35. Rf1 {[%clk 0:00:03]}  Nd4 {[%clk 0:02:02]} 0-1


[Site "https://www.chess.com"]